[Event "2nd El Ksiba Open 2019"]
[Site "El Ksiba"]
[Date "2019.04.09"]
[Round "2.9"]
[White "Zaibi, Amir"]
[Black "Douich, Mehdi"]
[Result "1-0"]
[ECO "E69"]
[WhiteElo "2395"]
[BlackElo "2022"]
[Annotator "NA"]
[PlyCount "61"]
[EventDate "2018.08.17"]
[EventType "swiss"]
[EventCountry "MAR"]
[SourceTitle "playchess.com"]
[Source "ChessBase"]
[SourceQuality "1"]
[TimeControl "5400+30"]

1. d4 {[%emt 0:01:26]} Nf6 {[%emt 0:09:13]} 2. c4 {[%emt 0:00:30]} g6 {[%emt 0:00:50]} 3. Nc3 {[%emt 0:00:05]} Bg7 {[%emt 0:00:04]} 4. g3 {[%emt 0:00:33]} O-O {[%emt 0:00:12]} 5. Bg2 {[%emt 0:00:05]} d6 {[%emt 0:00:06]} 6. Nf3 {[%emt 0:00:14]} c6 {[%emt 0:00:04]} 7. O-O {[%emt 0:00:16]} Qa5 {[%emt 0:00:03]} 8. h3 {[%emt 0:01:04]} e5 {[%emt 0:01:30]} 9. e4 {[%emt 0:00:19]} Nbd7 {[%emt 0:00:21]} 10. Be3 {[%emt 0:00:53]} Qa6 {[%emt 0:03:43] E69: King's Indian: Fianchetto: 6...Nbd7 7 0-0 e5 8 e4 c6 9 h3} (10... exd4 11. Nxd4 Nb6 12. Nb3 Qa6 13. c5 Nc4 14. Bd4 dxc5 15. Nxc5 Qa5 16. Qe2 Nb6 17. a3 Nbd7 18. b4 Qc7 19. Rfd1 Re8 {1-0 (51) Cheparinov,I (2710)-Mchedlishvili,M (2603) Riadh 2017}) 11. Rc1 $146 {[%emt 0:06:38]} ({Predecessor:} 11. b3 b5 12. cxb5 cxb5 13. dxe5 dxe5 14. a4 bxa4 15. Rxa4 Qb7 16. Qa1 Qxb3 17. Rb1 Qe6 18. Bxa7 Qc6 19. Ra5 {½-½ (38) Budai,D (2136)-Suto,G (2313) Szombathely 2003}) 11... Re8 {[%emt 0:04:49]} (11... Qxc4 $11 12. Qd2 Qb4) 12. d5 {[%emt 0:04:36]} c5 {[%emt 0:05:14]} 13. b4 {[%emt 0:01:51]} cxb4 {[%emt 0:01:46]} 14. Nb5 {[%emt 0:00:18]} Nc5 {[%emt 0:08:24] [#]} 15. Nc7 {[%emt 0:03:37]} (15. a3 $1 $16 {[%cal Ra3b4][%mdl 512]} bxa3 16. Bxc5 (16. Nc7 Qa5 $16) 16... dxc5 17. Nc7 {[%mdl 64] Double Attack}) 15... Qa5 {[%emt 0:00:08]} 16. Nxe8 {[%emt 0:01:22]} Nxe8 {[%emt 0:00:04]} 17. Nd2 {[%emt 0:00:57]} Qc7 {[%emt 0:09:43]} 18. a3 {[%emt 0:01:55]} bxa3 {[%emt 0:06:58]} 19. Ra1 {[%emt 0:00:42]} f5 {[%emt 0:05:39]} 20. Rxa3 {[%emt 0:00:30]} b6 {[%emt 0:04:34]} 21. exf5 {[%emt 0:08:39]} gxf5 {[%emt 0:06:26]} 22. Qh5 {[%emt 0:00:37]} Bd7 {[%emt 0:05:24]} 23. Bh6 {[%emt 0:02:11]} Bf6 $16 {[%emt 0:05:45]} 24. g4 {[%emt 0:06:36]} fxg4 {[%emt 0:12:59]} 25. Ne4 {[%emt 0:08:46]} Nxe4 {[%emt 0:02:36]} 26. Bxe4 {[%emt 0:00:05]} Qxc4 {[%emt 0:00:02]} 27. Re1 {[%emt 0:03:29]} Ng7 {[%emt 0:05:38]} 28. Bxg7 {[%emt 0:00:09]} Bxg7 {[%emt 0:00:02]} 29. hxg4 {[%emt 0:00:41]} Be8 {[%emt 0:01:17]} 30. Bxh7+ {[%emt 0:02:27]} Kf8 {[%emt 0:00:32]} 31. Rf3+ {[%emt 0:00:11]} 1-0

[Event "2nd El Ksiba Open 2019"]
[Site "El Ksiba"]
[Date "2019.04.09"]
[Round "2.10"]
[White "Mounib, Abdelaziz"]
[Black "Naumkin, Igor"]
[Result "0-1"]
[ECO "C45"]
[WhiteElo "2020"]
[BlackElo "2383"]
[Annotator "ChessBase"]
[PlyCount "68"]
[EventDate "2018.08.17"]
[EventType "swiss"]
[EventCountry "MAR"]
[SourceTitle "playchess.com"]
[Source "ChessBase"]
[SourceQuality "1"]
[TimeControl "5400+30"]

1. e4 {[%emt 0:02:02]} e5 {[%emt 0:04:50]} 2. Nf3 {[%emt 0:00:43]} Nc6 {[%emt 0:00:15]} 3. d4 {[%emt 0:01:55]} exd4 {[%emt 0:00:06]} 4. Nxd4 {[%emt 0:00:08]} Bc5 {[%emt 0:00:06]} 5. Nb3 {[%emt 0:00:08]} Bb6 {[%emt 0:00:12]} 6. Nc3 {[%emt 0:00:11]} Nf6 {[%emt 0:01:07]} 7. Qe2 {[%emt 0:01:22]} d6 {[%emt 0:01:21]} 8. Be3 {[%emt 0:00:20]} Be6 {[%emt 0:00:59]} 9. O-O-O {[%emt 0:00:50]} Qe7 {[%emt 0:01:19]} 10. g3 {[%emt 0:04:57]} O-O {[%emt 0:02:22]} 11. Bg2 {[%emt 0:01:17]} Bxe3+ {[%emt 0:03:58]} 12. Qxe3 {[%emt 0:00:30]} Ne5 {[%emt 0:00:29]} 13. f4 {[%emt 0:01:55]} Nc4 {[%emt 0:01:27]} 14. Qd4 {[%emt 0:03:28]} c5 {[%emt 0:03:28]} 15. Qg1 {[%emt 0:09:17]} Rab8 {[%emt 0:06:52]} 16. h3 {[%emt 0:01:31]} b5 {[%emt 0:01:11]} 17. Re1 {[%emt 0:30:01]} b4 {[%emt 0:04:25]} 18. Nd1 {[%emt 0:08:18]} a5 {[%emt 0:03:48]} 19. e5 {[%emt 0:00:51]} Nd7 {[%emt 0:03:56]} 20. g4 {[%emt 0:00:40]} a4 {[%emt 0:01:33]} 21. Na1 {[%emt 0:03:12]} Ndb6 {[%emt 0:08:18]} 22. f5 {[%emt 0:00:47]} Qg5+ {[%emt 0:02:52]} 23. Ne3 {[%emt 0:00:13]} Bd5 {[%emt 0:01:42]} 24. h4 {[%emt 0:03:27]} Qf4 {[%emt 0:00:36]} 25. Bxd5 {[%emt 0:16:57]} Nxd5 {[%emt 0:00:25]} 26. Qf1 {[%emt 0:00:17]} Qxf1 {[%emt 0:03:15]} 27. Nxf1 {[%emt 0:00:05]} Nxe5 {[%emt 0:04:02]} 28. Rd1 {[%emt 0:02:11]} Nf6 {[%emt 0:03:48]} 29. g5 {[%emt 0:02:15]} Ne4 {[%emt 0:00:11]} 30. Rh2 {[%emt 0:00:49]} a3 {[%emt 0:01:19]} 31. b3 {[%emt 0:01:47]} Nc3 {[%emt 0:01:14]} 32. Rxd6 {[%emt 0:01:05]} Nxa2+ {[%emt 0:00:15]} 33. Kb1 {[%emt 0:00:11]} Nc3+ {[%emt 0:00:13]} 34. Kc1 {[%emt 0:00:02]} Nf3 {[%emt 0:01:17]} 0-1